Department Family,Entity,Date,Expense Type,Expense Area,Supplier,Transaction Number,AP Amount,Purchase Invoice Number,
Department of Health,Royal Papworth Hospital NHS Foundation Trust,1/31/2024,Med & Surg Equip General,PCI,ABIOMED LTD,49812243,"31,800.00",440000511,
Department of Health,Royal Papworth Hospital NHS Foundation Trust,1/31/2024,Contr Estate Management,Engineering,AQUA FREE SOLUTIONS LTD,49863508,"33,800.25",25001303,
Department of Health,Royal Papworth Hospital NHS Foundation Trust,1/31/2024,IT Additions,Balance Sheet,BOXXE LTD,49632854,"144,676.00",INV0033401,
Department of Health,Royal Papworth Hospital NHS Foundation Trust,1/31/2024,Extrnl Rehrge : Recivd,Clinical Perfusion,CAMBRIDGE PERFUSION SERVICES LLP,49558138,"88,141.44",2453,
Department of Health,Royal Papworth Hospital NHS Foundation Trust,1/31/2024,Extrnl Rehrge : Recivd,ECMO program,CAMBRIDGE PERFUSION SERVICES LLP,49558136,"88,416.71",2456,
Department of Health,Royal Papworth Hospital NHS Foundation Trust,1/31/2024,Extrnl Rehrge : Recivd,Medical Staffing - Specialist,CAMBRIDGE UNIVERSITY HOSPITALS NHS FOUNDATION TRUST,49862357,"25,000.00",71006072,
Department of Health,Royal Papworth Hospital NHS Foundation Trust,1/31/2024,Extrnl Rehrge : Recivd,Medical Staffing - Specialist,CAMBRIDGE UNIVERSITY HOSPITALS NHS FOUNDATION TRUST,49862353,"50,000.00",71006073,
Department of Health,Royal Papworth Hospital NHS Foundation Trust,1/31/2024,Ext Contr Laundry,Laundry,CAMBRIDGE UNIVERSITY HOSPITALS NHS FOUNDATION TRUST,49669400,"98,567.69",80414362,
Department of Health,Royal Papworth Hospital NHS Foundation Trust,1/31/2024,SrvcsRecd-FoundationTrust,Occupational Health,CAMBRIDGE UNIVERSITY HOSPITALS NHS FOUNDATION TRUST,49780122,"30,458.58",80414902,
Department of Health,Royal Papworth Hospital NHS Foundation Trust,1/31/2024,SrvcsRecd-FoundationTrust,Palliative And Supportive Care,CAMBRIDGESHIRE & PETERBOROUGH NHS FOUNDATION TRUST,49856985,"29,570.58",67585540,
Department of Health,Royal Papworth Hospital NHS Foundation Trust,1/31/2024,Computer Software/License,Sitewide I T,CCUBE SOLUTIONS LTD,49564904,"66,000.00",INV0121,
Department of Health,Royal Papworth Hospital NHS Foundation Trust,1/31/2024,Laboratory External Tests,Pathology,CHRYSTAL CONSULTING LTD,49716667,"52,235.24",64298,
Department of Health,Royal Papworth Hospital NHS Foundation Trust,1/31/2024,Electricity,Energy,EDF ENERGY 1 LTD,49543823,"177,202.14",000017394221,
Department of Health,Royal Papworth Hospital NHS Foundation Trust,1/31/2024,Electricity,Energy,EDF ENERGY 1 LTD,49626667,"131,967.66",000017679931,
Department of Health,Royal Papworth Hospital NHS Foundation Trust,1/31/2024,Electricity,Energy,EDF ENERGY 1 LTD,49669554,"131,150.44",000017679945,
Department of Health,Royal Papworth Hospital NHS Foundation Trust,1/31/2024,Electricity,Energy,EDF ENERGY 1 LTD,49622593,"-95,542.14",000017680002,
Department of Health,Royal Papworth Hospital NHS Foundation Trust,1/31/2024,Electricity,Energy,EDF ENERGY 1 LTD,49669549,"94,395.71",000017680012,
Department of Health,Royal Papworth Hospital NHS Foundation Trust,1/31/2024,Electricity,Energy,EDF ENERGY 1 LTD,49738333,"85,483.68",000017808385,
Department of Health,Royal Papworth Hospital NHS Foundation Trust,1/31/2024,Electricity,Energy,EDF ENERGY 1 LTD,49738328,"144,833.18",000017811258,
Department of Health,Royal Papworth Hospital NHS Foundation Trust,1/31/2024,Grants,CHARITY FUNDED EXPENDITURE,ERNST & YOUNG LLP,49684905,"120,000.00",GB01G000482467,
Department of Health,Royal Papworth Hospital NHS Foundation Trust,1/31/2024,Various,Balance Sheet,INLAND REVENUE CIS,49642398,"3,021,880.52",126PQ001177772409,
Department of Health,Royal Papworth Hospital NHS Foundation Trust,1/31/2024,IT Additions,Balance Sheet,INSIGHT DIRECT (UK) LTD,49597119,"122,864.62",2100795479,
Department of Health,Royal Papworth Hospital NHS Foundation Trust,1/31/2024,Audit Fees: Statutory,Finance,KPMG LLP,49705842,"44,982.00",5502761338,
Department of Health,Royal Papworth Hospital NHS Foundation Trust,1/31/2024,Drugs,Balance Sheet,LLOYDS PHARMACY CLINICAL HOMECARE LTD,49733349,"349,347.68",LPCHJAN24CONS01,
Department of Health,Royal Papworth Hospital NHS Foundation Trust,1/31/2024,Drugs,Balance Sheet,LLOYDS PHARMACY CLINICAL HOMECARE LTD,49733350,"365,227.12",LPCHJAN24CONS02,
Department of Health,Royal Papworth Hospital NHS Foundation Trust,1/31/2024,Drugs,Balance Sheet,LLOYDS PHARMACY CLINICAL HOMECARE LTD,49733351,"333,468.24",LPCHJAN24CONS03,
Department of Health,Royal Papworth Hospital NHS Foundation Trust,1/31/2024,Drugs,Balance Sheet,LLOYDS PHARMACY CLINICAL HOMECARE LTD,49733352,"206,432.72",LPCHJAN24CONS04,
Department of Health,Royal Papworth Hospital NHS Foundation Trust,1/31/2024,Drugs,Balance Sheet,LLOYDS PHARMACY CLINICAL HOMECARE LTD,49733353,"133,939.64",LPCHJAN24CONS05,
Department of Health,Royal Papworth Hospital NHS Foundation Trust,1/31/2024,Rent,Waterbeach,MAPP PROPERTY MANAGEMENT LTD,49543821,"67,844.91",5650001379,
Department of Health,Royal Papworth Hospital NHS Foundation Trust,1/31/2024,Rent,Waterbeach,MAPP PROPERTY MANAGEMENT LTD,49622592,"67,844.91",5650001443,
Department of Health,Royal Papworth Hospital NHS Foundation Trust,1/31/2024,Computer Software/License,Sitewide I T,NETCALL TECHNOLOGY LTD,49623185,"46,178.40",MINV012363,
Department of Health,Royal Papworth Hospital NHS Foundation Trust,1/31/2024,Staff Benefits Expenses,Staff Welfare and Wellbeing,NPH HEALTHCARE LTD,49622527,"82,312.31",1711,
Department of Health,Royal Papworth Hospital NHS Foundation Trust,1/31/2024,Ext Contr Catering,Engineering,NPH HEALTHCARE LTD,49622526,"32,255.85",1712,
Department of Health,Royal Papworth Hospital NHS Foundation Trust,1/31/2024,Various,Various,NPH HEALTHCARE LTD,49705152,"1,457,663.32",1714,
Department of Health,Royal Papworth Hospital NHS Foundation Trust,1/31/2024,Various,Various,NPH HEALTHCARE LTD,49705182,"66,876.36",1718,
Department of Health,Royal Papworth Hospital NHS Foundation Trust,1/31/2024,Various,Various,NPH HEALTHCARE LTD,49684548,"33,897.82",1719,
Department of Health,Royal Papworth Hospital NHS Foundation Trust,1/31/2024,Ext Contr Oth Hotel Srv,Sterilisation/Cssd,NUFFIELD HEALTH,49668625,"38,932.22",ARIN00091849,
Department of Health,Royal Papworth Hospital NHS Foundation Trust,1/31/2024,Drugs,Balance Sheet,POLAR SPEED DISTRIBUTION LTD,49750004,"36,140.00",PS JAN24 CONS01,
Department of Health,Royal Papworth Hospital NHS Foundation Trust,1/31/2024,Drugs,Balance Sheet,POLAR SPEED DISTRIBUTION LTD,49750012,"35,236.50",PS JAN24 CONS02,
Department of Health,Royal Papworth Hospital NHS Foundation Trust,1/31/2024,Drugs,Balance Sheet,POLAR SPEED DISTRIBUTION LTD,49750021,"28,008.50",PS JAN24 CONS04,
Department of Health,Royal Papworth Hospital NHS Foundation Trust,1/31/2024,Drugs,Balance Sheet,POLAR SPEED DISTRIBUTION LTD,49750024,"30,719.00",PS JAN24 CONS05,
Department of Health,Royal Papworth Hospital NHS Foundation Trust,1/31/2024,Drugs,Balance Sheet,POLAR SPEED DISTRIBUTION LTD,49750028,"32,526.00",PS JAN24 CONS06,
Department of Health,Royal Papworth Hospital NHS Foundation Trust,1/31/2024,Drugs,Balance Sheet,POLAR SPEED DISTRIBUTION LTD,49750038,"30,719.00",PS JAN24 CONS08,
Department of Health,Royal Papworth Hospital NHS Foundation Trust,1/31/2024,Drugs,Balance Sheet,POLAR SPEED DISTRIBUTION LTD,49750041,"28,008.50",PS JAN24 CONS09,
Department of Health,Royal Papworth Hospital NHS Foundation Trust,1/31/2024,Drugs,Balance Sheet,POLAR SPEED DISTRIBUTION LTD,49750045,"27,105.00",PS JAN24 CONS10,
Department of Health,Royal Papworth Hospital NHS Foundation Trust,1/31/2024,External Consultancy Fees,Finance,PRICEWATERHOUSECOOPERS LLP,49752317,"152,031.21",1356123277,
Department of Health,Royal Papworth Hospital NHS Foundation Trust,1/31/2024,Drugs,Balance Sheet,SCIENSUS PHARMA SERVICES LTD,49733354,"349,347.68",SCIJAN24 CONS01,
Department of Health,Royal Papworth Hospital NHS Foundation Trust,1/31/2024,Drugs,Balance Sheet,SCIENSUS PHARMA SERVICES LTD,49733355,"333,468.24",SCIJAN24 CONS02,
Department of Health,Royal Papworth Hospital NHS Foundation Trust,1/31/2024,Drugs,Balance Sheet,SCIENSUS PHARMA SERVICES LTD,49733356,"142,914.96",SCIJAN24 CONS03,
Department of Health,Royal Papworth Hospital NHS Foundation Trust,1/31/2024,Drugs,Balance Sheet,SCIENSUS PHARMA SERVICES LTD,49733357,"51,742.44",SCIJAN24 CONS04,
Department of Health,Royal Papworth Hospital NHS Foundation Trust,1/31/2024,Other Liabilities - Curr,Balance Sheet,SUPPLY CHAIN COORDINATION LIMITED,49543846,"486,407.50",1124264214,
Department of Health,Royal Papworth Hospital NHS Foundation Trust,1/31/2024,Other Liabilities - Curr,Balance Sheet,SUPPLY CHAIN COORDINATION LIMITED,49587141,"44,029.35",1124265413,
Department of Health,Royal Papworth Hospital NHS Foundation Trust,1/31/2024,Other Liabilities - Curr,Balance Sheet,SUPPLY CHAIN COORDINATION LIMITED,49587137,"246,441.08",1124266986,
Department of Health,Royal Papworth Hospital NHS Foundation Trust,1/31/2024,Other Liabilities - Curr,Balance Sheet,SUPPLY CHAIN COORDINATION LIMITED,49669556,"56,208.25",1124269094,
Department of Health,Royal Papworth Hospital NHS Foundation Trust,1/31/2024,Other Liabilities - Curr,Balance Sheet,SUPPLY CHAIN COORDINATION LIMITED,49669558,"911,471.13",1124271934,
Department of Health,Royal Papworth Hospital NHS Foundation Trust,1/31/2024,Other Liabilities - Curr,Balance Sheet,SUPPLY CHAIN COORDINATION LIMITED,49705313,"491,049.46",1124279031,
Department of Health,Royal Papworth Hospital NHS Foundation Trust,1/31/2024,Other Liabilities - Curr,Balance Sheet,SUPPLY CHAIN COORDINATION LIMITED,49738350,"73,830.35",1124279216,
Department of Health,Royal Papworth Hospital NHS Foundation Trust,1/31/2024,Other Liabilities - Curr,Balance Sheet,SUPPLY CHAIN COORDINATION LIMITED,49796341,"583,114.83",1124282741,
Department of Health,Royal Papworth Hospital NHS Foundation Trust,1/31/2024,Other Liabilities - Curr,Balance Sheet,SUPPLY CHAIN COORDINATION LIMITED,49826250,"95,133.17",1124286991,
Department of Health,Royal Papworth Hospital NHS Foundation Trust,1/31/2024,Other Liabilities - Curr,Balance Sheet,SUPPLY CHAIN COORDINATION LIMITED,49862336,"105,692.62",1124289631,
Department of Health,Royal Papworth Hospital NHS Foundation Trust,1/31/2024,Other Liabilities - Curr,Balance Sheet,SUPPLY CHAIN COORDINATION LIMITED,49862339,"897,715.17",1124293992,
Department of Health,Royal Papworth Hospital NHS Foundation Trust,1/31/2024,Other Liabilities - Curr,Balance Sheet,SUPPLY CHAIN COORDINATION LIMITED,49622586,"-309,570.90",1192407392,
Department of Health,Royal Papworth Hospital NHS Foundation Trust,1/31/2024,Med & Surg Equip General,Transplant,TRANSMEDICS BV,49558109,"208,850.00",000088,
Department of Health,Royal Papworth Hospital NHS Foundation Trust,1/31/2024,Med & Surg Equip General,Transplant,TRANSMEDICS BV,49599786,"208,850.00",000114,
Department of Health,Royal Papworth Hospital NHS Foundation Trust,1/31/2024,Med & Surg Equip General,Transplant,TRANSMEDICS BV,49599787,"167,080.00",000202,
Department of Health,Royal Papworth Hospital NHS Foundation Trust,1/31/2024,Services Received - HAs,External Pathology,UK HEALTH SECURITY AGENCY,49564911,"70,409.86",5070409,
Department of Health,Royal Papworth Hospital NHS Foundation Trust,1/31/2024,Electricity,HLRI,UNIVERSITY OF CAMBRIDGE,49669398,"199,040.63",BA1202958,
Department of Health,Royal Papworth Hospital NHS Foundation Trust,1/31/2024,Consultant,Med Staff - Chest Med,UNIVERSITY OF CAMBRIDGE,49780147,"62,409.93",RA1216663,
